bitfinex-derivatives/quotes_SOLF0:USTF0_20260202
["timestamp","ask_amount","ask_price","bid_price","bid_amount"]
[1770019570259,137.7099,101.78,101.68,35.0373883]
[1770019570461,176.27512959,101.79,101.69,35.0373883]
[1770019570660,155.63148558,101.82,101.69,35.0373883]
[1770019570661,203.05801517,101.82,101.71,172.8375883]
[1770019570855,137.6888,101.8,101.71,35.0373883]
[1770019571055,137.6968,101.79,101.73,0.07264811]
[1770019571260,38.57722959,101.8,101.73,0.07264811]
[1770019571661,38.57722959,101.8,101.71,35.0373883]
[1770019571966,176.22072959,101.83,101.72,564.4878883]
[1770019572161,176.22072959,101.83,101.75,0.06276017]
[1770019572360,176.23302959,101.82,101.75,0.06276017]
[1770019572566,38.57722959,101.81,101.75,0.06276017]
[1770019572764,38.57722959,101.81,101.72,35.0373883]
[1770019573068,38.57722959,101.81,101.77,0.06675253]
[1770019573663,176.21822959,101.84,101.77,0.06675253]
[1770019573962,176.24672959,101.81,101.71,35.0373883]
[1770019574265,38.57722959,101.81,101.72,35.0373883]
[1770019574962,38.57722959,101.81,101.67,391.8]
[1770019574963,38.57722959,101.76,101.67,391.8]
[1770019575166,38.57722959,101.76,101.67,564.6946883]
[1770019575366,38.57722959,101.76,101.67,426.8373883]
[1770019575565,38.57722959,101.76,101.68,35.0373883]
[1770019575964,176.27952959,101.79,101.69,35.0373883]
[1770019576164,38.57722959,101.79,101.69,172.8663883]
[1770019576465,176.27372959,101.79,101.69,35.0373883]
[1770019576668,38.57722959,101.79,101.73,0.06232957]
[1770019576865,176.30212959,101.77,101.69,35.0373883]
[1770019577067,38.57722959,101.77,101.69,35.0373883]
[1770019577268,176.26112959,101.8,101.69,172.8672883]
[1770019577470,185.11232959,101.8,101.69,35.0373883]
[1770019577668,185.11232959,101.8,101.71,35.0373883]
[1770019577669,38.57722959,101.8,101.71,35.0373883]
[1770019578064,176.26462959,101.8,101.71,35.0373883]
[1770019578368,137.6635,101.82,101.72,35.0373883]
[1770019578563,38.57722959,101.83,101.74,35.0373883]
[1770019578762,38.57722959,101.83,101.75,35.0373883]
[1770019579158,0.06442457,101.8,101.75,35.0373883]
[1770019579363,38.57722959,101.86,101.76,35.0373883]
[1770019579566,176.17952959,101.86,101.76,35.0373883]
[1770019579870,38.57722959,101.85,101.76,172.84442681]
[1770019580064,38.57722959,101.84,101.76,35.0373883]
[1770019580266,38.57722959,101.84,101.73,529.7145]
[1770019580267,176.23452959,101.82,101.73,426.9773883]
[1770019580569,38.57722959,101.82,101.73,564.7517883]
[1770019580770,38.57722959,101.82,101.76,0.07532614]
[1770019581765,38.57722959,101.85,101.76,0.07532614]
[1770019581970,38.57722959,101.85,101.77,172.7600883]
[1770019582771,38.57722959,101.85,101.8,0.07152519]
[1770019583861,38.57722959,101.87,101.8,0.07152519]
[1770019584068,137.5726,101.89,101.8,0.07152519]
[1770019584069,38.57722959,101.89,101.8,172.78861349]
[1770019584264,176.09862959,101.92,101.81,172.7045883]
[1770019584467,38.57722959,101.9,101.81,35.0373883]
[1770019584667,38.57722959,101.88,101.78,35.0373883]
[1770019585265,0.06478349,101.87,101.78,35.0373883]
[1770019585565,17.96768558,101.91,101.8,35.0373883]
[1770019585771,17.96768558,101.91,101.82,35.0373883]
[1770019585772,38.57722959,101.91,101.82,35.0373883]
[1770019585975,38.57722959,101.91,101.82,172.6904883]
[1770019586174,38.57722959,101.91,101.82,35.0373883]
[1770019586871,176.09152959,101.93,101.83,35.0373883]
[1770019587075,0.06534884,101.88,101.83,35.0373883]
[1770019587667,176.09152959,101.93,101.84,35.0373883]
[1770019587668,38.57722959,101.93,101.84,35.0373883]
[1770019587867,38.57722959,101.93,101.85,573.4378883]
[1770019588168,47.41482959,101.96,101.85,573.4378883]
[1770019588569,47.41482959,101.96,101.84,391.92]
[1770019588570,38.57722959,101.94,101.84,391.92]
[1770019588770,137.5072,101.93,101.84,391.92]
[1770019588966,176.10392959,101.92,101.84,391.92]
[1770019589473,38.57722959,101.92,101.84,426.9573883]
[1770019589776,38.57722959,101.92,101.84,35.0373883]
[1770019589976,176.12542959,101.9,101.81,35.0373883]
[1770019590172,183.34716117,101.89,101.81,35.0373883]
[1770019590678,54.62796117,101.89,101.81,35.0373883]
[1770019590982,0.06498743,101.86,101.81,35.0373883]
[1770019592479,0.06498743,101.86,101.79,391.84]
[1770019592680,38.64221702,101.86,101.78,35.0373883]
[1770019592980,38.57722959,101.86,101.78,35.0373883]
[1770019593375,192.23346117,101.86,101.78,35.0373883]
[1770019593570,137.6152,101.85,101.78,35.0373883]
[1770019593775,0.06811414,101.83,101.77,391.84]
[1770019594271,0.06811414,101.83,101.77,426.8773883]
[1770019594475,0.06811414,101.83,101.78,35.0373883]
[1770019594869,0.06811414,101.83,101.78,426.8773883]
[1770019595275,0.06811414,101.83,101.78,35.0373883]
[1770019595481,0.06811414,101.83,101.75,564.6274883]
[1770019595783,0.06811414,101.83,101.77,35.0373883]
[1770019596076,45.78446117,101.88,101.79,35.0373883]
[1770019596279,45.78446117,101.88,101.79,426.8973883]
[1770019596475,137.589,101.87,101.79,426.8973883]
[1770019596779,0.06373333,101.85,101.79,391.86]
[1770019596975,176.25636292,101.85,101.77,391.86]
[1770019597175,38.64096292,101.85,101.77,564.6202883]
[1770019597477,38.57722959,101.85,101.77,564.6202883]
[1770019597677,38.57722959,101.85,101.77,435.7506883]
[1770019597882,0.06300485,101.82,101.77,426.8973883]
[1770019598272,0.06300485,101.82,101.77,435.7506883]
[1770019598477,0.06300485,101.82,101.77,426.8973883]
[1770019599076,37.42854716,101.82,101.74,37.89823583]
[1770019599283,182.30670898,101.82,101.74,37.89823583]
[1770019599579,7.22256182,101.8,101.72,391.86]
[1770019599775,7.22256182,101.8,101.72,429.75823583]
[1770019599978,37.36554231,101.81,101.72,429.75823583]
[1770019600179,37.36554231,101.81,101.73,37.89823583]
[1770019600379,175.03824231,101.81,101.73,37.89823583]
[1770019600680,174.95414231,101.87,101.77,37.89823583]
[1770019600876,174.95414231,101.87,101.78,391.88]
[1770019601378,0.06515474,101.83,101.78,429.77823583]
[1770019601582,0.06515474,101.83,101.79,37.89823583]
[1770019601772,37.36554231,101.87,101.79,37.89823583]
[1770019601973,183.76904231,101.9,101.8,37.89823583]
[1770019602478,46.20814231,101.9,101.81,46.74803583]
[1770019602683,37.36554231,101.9,101.82,37.89823583]
[1770019602881,37.36554231,101.9,101.82,429.79823583]
[1770019603078,37.36554231,101.9,101.82,576.30243583]
[1770019603283,37.36554231,101.9,101.85,0.07499478]
[1770019604586,174.93004231,101.89,101.8,8.86526993]
[1770019604784,37.36554231,101.88,101.79,400.7512]
[1770019605380,46.21004231,101.88,101.79,400.7512]
[1770019605682,46.21004231,101.88,101.79,438.64943583]
[1770019605982,0.07169962,101.85,101.79,438.64943583]
[1770019606183,0.07169962,101.85,101.79,429.75823583]
[1770019607082,0.07169962,101.85,101.79,391.86]
[1770019607774,0.07169962,101.85,101.77,8.86526993]
[1770019608377,172.96866743,101.84,101.75,8.86526993]
[1770019608580,172.96866743,101.84,101.73,184.29043397]
[1770019608581,172.95556743,101.85,101.76,46.5343039]
[1770019608884,0.06605154,101.82,101.76,46.5343039]
[1770019609286,0.06605154,101.82,101.76,55.3885039]
[1770019609878,0.06605154,101.82,101.76,46.52323397]
[1770019610082,0.06605154,101.82,101.75,8.86526993]
[1770019610282,173.00866743,101.81,101.73,46.5343039]
[1770019610486,35.33946743,101.81,101.73,46.5343039]
[1770019610784,181.85896743,101.81,101.73,46.5343039]
[1770019610986,0.07452602,101.78,101.73,46.5343039]
[1770019611584,0.07452602,101.78,101.73,8.86526993]
[1770019611887,0.07452602,101.78,101.73,46.5343039]
[1770019612490,0.07452602,101.78,101.74,8.86526993]
[1770019612692,0.07452602,101.78,101.73,46.5343039]
[1770019613194,8.8486,101.83,101.75,8.93141773]
[1770019613387,181.83396743,101.83,101.75,8.93141773]
[1770019613586,8.8495,101.82,101.75,8.93141773]
[1770019613890,8.8495,101.82,101.75,8.86526993]
[1770019614488,8.8495,101.82,101.77,0.07198543]
[1770019614689,181.84596743,101.82,101.77,0.07198543]
[1770019614884,8.8503,101.81,101.77,0.07198543]
[1770019615283,35.33946743,101.82,101.77,0.07198543]
[1770019615990,8.8479,101.84,101.77,0.07198543]
[1770019616185,8.8479,101.84,101.78,8.86526993]
[1770019616793,35.33946743,101.85,101.78,8.86526993]
[1770019617088,35.33946743,101.85,101.8,0.06748878]
[1770019617393,35.33946743,101.87,101.8,0.06748878]
[1770019617589,35.33946743,101.87,101.8,8.93275871]
[1770019617990,35.33946743,101.87,101.8,8.86526993]
[1770019618190,35.33946743,101.87,101.81,8.86526993]
[1770019618390,172.92786743,101.87,101.82,0.06758575]
[1770019618590,8.8461,101.86,101.82,0.06758575]
[1770019619187,8.847,101.85,101.82,0.06758575]
[1770019619493,8.91044864,101.85,101.78,438.4943039]
[1770019619793,8.91044864,101.85,101.79,8.86526993]
[1770019619989,172.97586743,101.84,101.78,8.86526993]
[1770019620293,172.97586743,101.84,101.77,8.86526993]
[1770019620692,35.33946743,101.84,101.77,8.86526993]
[1770019620893,0.06592233,101.82,101.78,8.86526993]
[1770019621088,137.5933,101.87,101.79,8.86526993]
[1770019621089,42.56423627,101.87,101.79,8.86526993]
[1770019621293,35.33946743,101.86,101.8,8.86526993]
[1770019621493,172.94166743,101.86,101.79,8.92911738]
[1770019621691,8.8443,101.88,101.8,46.5343039]
[1770019621896,172.91456743,101.88,101.81,8.86526993]
[1770019622091,172.94106743,101.86,101.8,8.86526993]
[1770019622285,172.94106743,101.86,101.79,8.86526993]
[1770019622899,35.33946743,101.84,101.78,6.993e-05]
[1770019623090,35.41293477,101.84,101.78,6.993e-05]
[1770019623292,35.41293477,101.84,101.76,11.97253225]
[1770019623293,35.33946743,101.82,101.76,11.97253225]
[1770019623493,35.33946743,101.79,101.73,11.97253225]
[1770019623790,35.33946743,101.79,101.7,37.66903397]
[1770019623791,35.33946743,101.78,101.7,37.66903397]
[1770019624192,0.06335356,101.77,101.7,37.66903397]
[1770019624502,137.6729,101.81,101.73,37.66903397]
[1770019624503,35.33946743,101.81,101.73,37.66903397]
[1770019624694,35.33946743,101.81,101.73,429.60903397]
[1770019624895,35.33946743,101.8,101.73,391.94]
[1770019625189,173.02406743,101.8,101.73,391.94]
[1770019625394,173.02406743,101.8,101.7,37.66903397]
[1770019625395,8.853,101.78,101.7,37.66903397]
[1770019625596,146.5709,101.78,101.7,37.66903397]
[1770019625899,181.91036743,101.78,101.7,37.66903397]
[1770019626200,181.91036743,101.78,101.73,0.07554972]
[1770019626697,180.29273627,101.77,101.69,609.82737983]
[1770019627001,180.29273627,101.77,101.67,55.5795459]
[1770019627002,175.53589385,101.76,101.67,37.66903397]
[1770019627296,181.94796743,101.75,101.67,37.66903397]
[1770019627504,189.17273627,101.75,101.67,37.66903397]
[1770019627798,44.19516743,101.75,101.67,37.66903397]
[1770019627997,181.94546743,101.75,101.67,37.66903397]
[1770019628200,0.07478509,101.72,101.67,37.66903397]
[1770019629190,8.855,101.76,101.67,37.66903397]
[1770019629398,8.855,101.76,101.68,36.53220231]
[1770019629629,8.855,101.76,101.68,428.55220231]
[1770019629905,46.08841039,101.78,101.69,36.46851398]
[1770019630206,183.79821039,101.78,101.69,36.46851398]
[1770019630399,8.854,101.77,101.69,36.46851398]
[1770019630603,37.23521039,101.76,101.66,54.37902591]
[1770019630899,37.23521039,101.76,101.72,0.06597511]
[1770019631102,174.97211039,101.76,101.72,0.06597511]
[1770019631303,174.98721039,101.75,101.68,36.46851398]
[1770019631504,37.29981425,101.75,101.68,36.46851398]
[1770019631902,37.23521039,101.75,101.68,36.46851398]
[1770019632102,46.09111039,101.75,101.68,36.46851398]
[1770019632300,7.22476884,101.77,101.68,36.46851398]
[1770019632502,174.94501039,101.78,101.68,36.46851398]
[1770019632697,37.23521039,101.78,101.69,428.56851398]
[1770019632899,37.23521039,101.78,101.7,36.46851398]
[1770019633104,174.97511039,101.76,101.67,36.46851398]
[1770019633305,174.98721039,101.75,101.67,428.58851398]
[1770019633508,37.23521039,101.74,101.67,392.12]
[1770019633702,146.6356,101.73,101.67,392.12]
[1770019634000,37.23521039,101.71,101.64,36.46851398]
[1770019634397,146.6684,101.71,101.61,36.46851398]
[1770019634601,37.23521039,101.68,101.58,233.00851398]
[1770019634801,175.08101039,101.68,101.59,428.60851398]
[1770019635000,8.8626,101.67,101.59,428.60851398]
[1770019635304,0.07295935,101.65,101.59,36.46851398]
[1770019635502,0.07295935,101.65,101.6,36.46851398]
[1770019636001,37.23521039,101.69,101.6,45.33671398]
[1770019636206,8.8603,101.7,101.61,36.46851398]
[1770019636711,8.8603,101.7,101.63,0.06523924]
[1770019637010,46.09371039,101.72,101.63,428.73375322]
[1770019637203,46.09371039,101.72,101.63,428.66851398]
[1770019637506,46.09371039,101.72,101.63,428.68851398]
[1770019637900,46.09371039,101.72,101.66,0.07063648]
[1770019638099,183.90021039,101.71,101.66,0.07063648]
[1770019639003,8.8572,101.73,101.66,0.07063648]
[1770019639504,37.23521039,101.74,101.64,566.64581398]
[1770019639806,37.23521039,101.73,101.64,428.74851398]
[1770019640006,37.23521039,101.73,101.68,0.07081558]
[1770019640601,175.04251039,101.71,101.61,36.46851398]
[1770019640804,37.23521039,101.7,101.61,36.46851398]
[1770019641402,175.06861039,101.69,101.61,36.46851398]
[1770019641709,137.8595,101.67,101.58,428.76851398]
[1770019641908,8.8635,101.66,101.58,428.76851398]
[1770019642110,8.93104139,101.66,101.59,36.46851398]
[1770019642304,0.06754139,101.66,101.59,36.46851398]
[1770019642506,175.08291039,101.68,101.59,36.46851398]
[1770019642808,8.8625,101.67,101.59,36.46851398]
[1770019643010,0.07113323,101.64,101.59,36.46851398]
[1770019645601,37.23521039,101.68,101.6,36.46851398]
[1770019646002,37.23521039,101.68,101.6,36.54039577]
[1770019646216,44.45997923,101.71,101.61,66.07851398]
[1770019646413,137.8186,101.7,101.62,36.46851398]
[1770019646613,175.05381039,101.7,101.62,36.46851398]
[1770019646912,8.8608,101.69,101.62,36.46851398]
[1770019647214,137.7884,101.73,101.62,36.46851398]
[1770019647215,175.02361039,101.73,101.65,36.54184948]
[1770019647404,37.23521039,101.73,101.65,36.54184948]
[1770019647808,37.23521039,101.73,101.65,36.46851398]
[1770019648509,46.09281039,101.73,101.68,0.0628675]
[1770019649109,8.8559,101.75,101.68,0.0628675]
[1770019649311,46.09111039,101.75,101.68,0.0628675]
[1770019649713,37.23521039,101.78,101.69,36.46851398]
[1770019650012,137.6809,101.81,101.71,66.07851398]
[1770019650013,37.23521039,101.81,101.71,66.07851398]
[1770019650211,146.5356,101.8,101.71,36.46851398]
[1770019650407,8.8514,101.8,101.71,36.46851398]
[1770019650918,8.8514,101.8,101.74,0.06386627]
[1770019651214,37.23521039,101.81,101.74,0.06386627]
[1770019651715,37.23521039,101.81,101.72,36.46851398]
[1770019651917,46.08561039,101.81,101.72,45.32591398]
[1770019652113,46.08561039,101.81,101.76,0.07467322]
[1770019652815,37.23521039,101.81,101.76,0.07467322]
[1770019653314,8.8488,101.83,101.76,0.07467322]
[1770019653507,46.08401039,101.83,101.76,0.07467322]
[1770019653912,46.08401039,101.83,101.74,418.24851398]
[1770019654111,8.847,101.85,101.76,36.46851398]
[1770019654307,8.847,101.85,101.78,0.06369413]
[1770019654510,46.08221039,101.85,101.78,0.06369413]
[1770019654710,37.23521039,101.85,101.78,0.06369413]
[1770019655016,37.23521039,101.85,101.78,36.46851398]
[1770019655318,37.23521039,101.85,101.8,0.06511746]
[1770019657211,174.79331039,101.9,101.8,36.53363144]
[1770019657518,37.23521039,101.89,101.8,36.53363144]
[1770019657816,38.57165979,101.87,101.78,174.30712614]
[1770019658110,38.57165979,101.87,101.83,0.07212506]
[1770019661016,38.57165979,101.86,101.79,36.60182614]
[1770019661315,38.57165979,101.86,101.73,551.063]
[1770019661316,38.57165979,101.81,101.73,36.60182614]
[1770019661521,176.26785979,101.79,101.7,428.72182614]
[1770019661721,45.78875368,101.78,101.7,428.72182614]
[1770019662113,183.52575368,101.76,101.69,223.681483]
[1770019662417,183.52575368,101.76,101.67,36.60182614]
[1770019662418,137.807,101.71,101.64,36.60182614]
[1770019662609,38.57165979,101.71,101.64,137.8988]
[1770019662811,176.39699151,101.75,101.66,36.60182614]
[1770019663015,176.32215979,101.75,101.66,36.60182614]
[1770019663212,137.7641,101.74,101.66,36.60182614]
[1770019663518,0.07165008,101.72,101.63,36.60182614]
[1770019663823,176.32215979,101.75,101.63,36.60182614]
[1770019663824,176.32425979,101.75,101.65,36.60182614]
[1770019664320,137.7651,101.74,101.65,36.60182614]
[1770019664514,47.42745979,101.75,101.69,0.06444938]
[1770019665014,38.57165979,101.74,101.69,0.06444938]
[1770019665921,38.57165979,101.74,101.62,183.39332614]
[1770019665922,38.57165979,101.73,101.62,183.39332614]
[1770019666220,145.00889389,101.72,101.62,36.60182614]
[1770019666424,176.42466993,101.73,101.63,36.60182614]
[1770019666725,38.57165979,101.72,101.63,36.60182614]
[1770019667420,0.06676309,101.69,101.63,36.60182614]
[1770019668928,0.06676309,101.69,101.6,428.36847836]
[1770019669427,185.2576311,101.7,101.61,36.20847836]
[1770019669926,0.07228017,101.66,101.61,36.20847836]
[1770019672329,0.07228017,101.66,101.6,392.16]
[1770019673224,38.5787311,101.75,101.65,36.20847836]
[1770019673424,45.79582499,101.74,101.65,428.54847836]
[1770019673731,45.79582499,101.74,101.65,392.34]
[1770019673732,38.5787311,101.72,101.65,392.34]
[1770019674530,38.5787311,101.72,101.67,0.06827843]
[1770019674929,38.5787311,101.75,101.67,0.06827843]
[1770019675430,38.5787311,101.75,101.65,530.2197]
[1770019675431,38.5787311,101.75,101.65,401.2035]
[1770019675630,38.5787311,101.75,101.65,437.41197836]
[1770019675826,38.5787311,101.75,101.7,0.06349665]
[1770019676230,45.79582499,101.74,101.65,392.34]
[1770019676729,38.5787311,101.73,101.65,392.34]
[1770019678233,38.5787311,101.73,101.65,566.43287836]
[1770019678532,38.5787311,101.82,101.73,173.97987836]
[1770019678733,137.6204,101.85,101.75,203.46267836]
[1770019678734,38.5787311,101.85,101.75,203.46267836]
[1770019678929,38.5787311,101.85,101.76,173.94357836]
[1770019679835,7.21709389,101.87,101.77,173.92627836]
[1770019680136,45.79582499,101.87,101.77,173.92627836]
[1770019680329,38.5787311,101.86,101.77,36.20847836]
[1770019680531,38.5787311,101.86,101.77,173.92827836]
[1770019680736,38.5787311,101.86,101.78,8.8523]
[1770019681039,0.06686206,101.83,101.76,392.4]
[1770019681535,185.0554311,101.84,101.76,392.4]
[1770019681739,183.44122499,101.83,101.74,36.20847836]
[1770019681933,183.44122499,101.83,101.72,137.7794]
[1770019681934,137.6837,101.8,101.72,392.34]
[1770019682131,183.49532499,101.79,101.72,392.34]
[1770019682330,176.2921311,101.78,101.68,36.20847836]
[1770019682533,45.79582499,101.81,101.71,36.20847836]
[1770019682733,38.5787311,101.81,101.72,173.99777836]
[1770019682936,38.5787311,101.81,101.73,428.50847836]
[1770019683237,38.5787311,101.81,101.7,36.20847836]
[1770019683238,183.49632499,101.79,101.7,36.20847836]
[1770019684334,146.5641,101.78,101.7,36.20847836]
[1770019684539,146.5641,101.78,101.69,392.28]
[1770019684540,137.7368,101.76,101.69,392.28]
[1770019684748,185.1993311,101.74,101.63,182.97497836]
[1770019685038,176.3428311,101.74,101.64,36.20847836]
[1770019685233,144.99599389,101.73,101.64,36.20847836]
[1770019685639,137.7949,101.72,101.64,36.20847836]
[1770019686034,0.0672662,101.7,101.64,36.20847836]
[1770019687244,38.5787311,101.69,101.61,36.20847836]
[1770019687445,176.4240311,101.68,101.58,36.20847836]
[1770019687637,38.5787311,101.68,101.58,174.18797836]
[1770019687836,185.2897311,101.68,101.58,45.07847836]
[1770019688641,185.2897311,101.68,101.58,36.20847836]
[1770019688839,137.8594,101.67,101.58,36.20847836]
[1770019689039,0.06409442,101.64,101.58,36.20847836]
[1770019689540,0.06409442,101.64,101.57,392.28]
[1770019689736,35.90069681,101.69,101.6,38.14710573]
[1770019689937,153.89039389,101.71,101.61,38.14710573]
[1770019690238,182.57399681,101.71,101.61,38.14710573]
[1770019690436,146.6784,101.7,101.61,38.14710573]
[1770019690638,8.8597,101.7,101.61,38.14710573]
[1770019690935,146.6778,101.7,101.61,38.14710573]
[1770019691142,182.57849681,101.7,101.64,0.07010822]
[1770019691348,182.60029681,101.69,101.64,0.07010822]
[1770019691847,35.90069681,101.69,101.64,0.07010822]
[1770019692448,137.8136,101.71,101.64,0.07010822]
[1770019692644,173.71429681,101.71,101.64,0.07010822]
[1770019692841,35.9662168,101.68,101.58,137.9759]
[1770019693148,173.8117168,101.68,101.59,38.14710573]
[1770019693352,173.74619681,101.68,101.59,38.14710573]
[1770019693547,35.90069681,101.68,101.59,176.11290573]
[1770019693748,35.90069681,101.68,101.59,47.01600573]
[1770019693948,35.90069681,101.65,101.56,38.14710573]
[1770019694152,173.78979681,101.65,101.56,38.14710573]
[1770019694442,35.96313187,101.65,101.56,38.14710573]
[1770019694642,173.78709681,101.65,101.56,38.14710573]
[1770019694848,35.90069681,101.65,101.56,38.14710573]
[1770019695149,0.07348163,101.62,101.56,38.14710573]
[1770019695445,16.07969389,101.67,101.58,38.14710573]
[1770019695648,51.9803907,101.67,101.59,0.06422124]
[1770019695850,35.90069681,101.67,101.59,38.21132697]
[1770019696145,35.90069681,101.65,101.56,38.14710573]
[1770019696346,35.90069681,101.65,101.56,185.02520573]
[1770019696547,35.90069681,101.65,101.57,176.14090573]
[1770019696846,35.90069681,101.65,101.58,137.9802]
[1770019697049,35.90069681,101.67,101.6,0.06901981]
[1770019697549,8.8619,101.68,101.6,38.14710573]
[1770019697550,35.90069681,101.68,101.6,38.14710573]
[1770019697951,35.90069681,101.67,101.62,0.06513605]
[1770019698152,35.90069681,101.65,101.57,38.14710573]
[1770019698449,35.965342,101.65,101.57,38.14710573]
[1770019698848,35.90069681,101.65,101.57,38.14710573]
[1770019699049,182.65109681,101.65,101.56,8.8714]
[1770019699244,35.90069681,101.64,101.56,8.8714]
[1770019699441,43.1177907,101.67,101.58,176.12690573]
[1770019699751,35.90069681,101.67,101.59,137.9659]
[1770019699952,35.90069681,101.67,101.58,176.12690573]
[1770019700341,35.90069681,101.66,101.58,38.14710573]
[1770019700549,35.90069681,101.66,101.58,184.99500573]
[1770019701446,35.90069681,101.66,101.59,146.8329]
[1770019701648,35.90069681,101.66,101.59,8.8689]
[1770019702854,35.90069681,101.68,101.6,146.8211]
[1770019703048,0.06419682,101.64,101.6,146.8211]
[1770019703448,392.56,101.71,101.62,176.06890573]
[1770019703449,51.9771907,101.71,101.62,176.06890573]
[1770019703650,35.90069681,101.7,101.62,176.06890573]
[1770019703850,35.90069681,101.7,101.62,47.01340573]
[1770019704354,35.90069681,101.7,101.61,530.62063439]
[1770019704355,35.90069681,101.68,101.61,392.62]
[1770019704550,173.74599681,101.68,101.61,392.62]
[1770019704750,35.90069681,101.67,101.61,392.62]
[1770019705052,44.76329681,101.67,101.63,0.06581552]
[1770019705442,35.90069681,101.67,101.63,0.06581552]
[1770019705643,16.07829389,101.69,101.63,0.06581552]
[1770019705948,51.9789907,101.69,101.63,0.06581552]
[1770019706251,35.90069681,101.69,101.63,0.06581552]
[1770019706657,35.90069681,101.72,101.64,137.8935]
[1770019706853,35.90069681,101.72,101.65,137.8832]
[1770019707148,173.65839681,101.75,101.65,176.03030573]
[1770019707352,35.90069681,101.74,101.66,8.8629]
[1770019707554,173.66799681,101.74,101.67,0.06747997]
[1770019707754,35.90069681,101.74,101.67,0.06747997]
[1770019708157,35.90069681,101.77,101.68,175.98790573]
[1770019708454,35.90069681,101.77,101.7,8.8594]
[1770019708753,35.90069681,101.77,101.69,0.06778211]
[1770019708952,35.90069681,101.77,101.68,175.98790573]
[1770019709152,44.75459681,101.77,101.68,184.84890573]
[1770019709349,44.75459681,101.77,101.72,0.06533809]
[1770019709658,8.8525,101.79,101.72,0.06533809]
[1770019709859,43.1177907,101.8,101.72,0.06533809]
[1770019710156,35.90069681,101.8,101.72,175.93270573]
[1770019710654,43.1177907,101.82,101.75,0.06739024]
[1770019710854,35.90069681,101.81,101.75,0.06739024]
[1770019711049,189.6063907,101.84,101.75,0.06739024]
[1770019711253,35.90069681,101.83,101.74,146.6174]
[1770019711555,35.90069681,101.83,101.78,0.06914613]
[1770019711951,173.57239681,101.81,101.73,38.14710573]
[1770019712253,173.57239681,101.81,101.72,8.8574]
[1770019712254,35.90069681,101.8,101.72,8.8574]
[1770019712553,35.90069681,101.8,101.71,392.6]
[1770019712750,180.8049907,101.8,101.71,392.6]
[1770019712952,51.9690907,101.8,101.71,568.55040573]
[1770019713354,43.1177907,101.8,101.72,8.8576]
[1770019713554,153.72429389,101.82,101.73,38.14710573]
[1770019713754,173.58419681,101.8,101.7,184.82110573]
[1770019713956,173.58419681,101.8,101.69,38.14710573]
[1770019713957,43.1177907,101.78,101.69,38.14710573]
[1770019714158,35.90069681,101.78,101.7,175.96370573]
[1770019714653,7.21709389,101.8,101.71,175.94480573]
[1770019715156,35.90069681,101.81,101.71,175.94480573]
[1770019715356,35.90069681,101.8,101.71,47.00550573]
[1770019715557,35.90069681,101.8,101.74,0.07494927]
[1770019716153,16.06679389,101.82,101.74,0.07494927]
[1770019716550,173.56989681,101.81,101.74,0.07494927]
[1770019716749,173.56989681,101.81,101.71,8.8583]
[1770019716750,35.90069681,101.79,101.71,47.00540573]
[1770019717259,35.90069681,101.79,101.76,0.06497061]
[1770019717557,35.90069681,101.79,101.69,8.86]
[1770019717558,43.1177907,101.78,101.69,8.86]
[1770019717755,43.1177907,101.78,101.69,47.65558452]
[1770019718060,43.1177907,101.78,101.7,38.79558452]
[1770019718460,35.90069681,101.78,101.7,38.79558452]
[1770019719457,35.90069681,101.78,101.7,47.65488452]
[1770019720261,38.24228294,101.77,101.7,38.79558452]
[1770019720465,38.24228294,101.77,101.68,492.54118452]
[1770019720763,0.06302098,101.75,101.69,176.62678452]
[1770019720963,0.06302098,101.75,101.7,185.47168452]
[1770019721155,0.06302098,101.75,101.7,176.61248452]
[1770019721663,0.06302098,101.75,101.71,47.65398452]
[1770019721861,0.06302098,101.75,101.71,38.79558452]
[1770019722062,0.06302098,101.75,101.68,483.68028452]
[1770019722463,0.06302098,101.75,101.69,38.79558452]
[1770019722658,183.18724284,101.78,101.69,38.79558452]
[1770019722963,0.06425234,101.73,101.69,38.79558452]
[1770019723161,0.06425234,101.73,101.69,47.65548452]
[1770019723358,54.33024284,101.78,101.69,47.65548452]
[1770019723566,38.24228294,101.78,101.71,38.79558452]
[1770019723763,38.24228294,101.78,101.71,47.65418452]
[1770019724162,43.75677066,101.88,101.78,167.2189]
[1770019724362,43.75677066,101.88,101.79,401.1513]
[1770019724859,43.75677066,101.88,101.82,0.07290787]
[1770019725956,144.7694599,101.91,101.82,146.57350787]
[1770019725957,43.75679395,101.91,101.82,146.57350787]
[1770019726158,43.75679395,101.91,101.82,137.72450787]
[1770019726559,43.75679395,101.91,101.82,137.6516]
[1770019726966,43.79950836,101.94,101.85,0.0738591]
[1770019727166,43.79950836,101.94,101.85,137.6872591]
[1770019727667,43.79950836,101.94,101.86,146.446]
[1770019727867,43.79950836,101.94,101.88,0.06522599]
[1770019729364,44.86060694,101.97,101.89,536.9354599]
[1770019729568,137.3695,102.04,101.93,137.5062]
[1770019729766,137.3736,102.03,101.93,137.5062]